[Event "Titled Tuesday Blitz January 10 Late 2023"]
[White "Manukyan, Sargis A."]
[Black "Nogerbek, Kazybek"]
[WhiteFideId "13303970"]
[BlackFideId "13710427"]
[WhiteElo "2158"]
[BlackElo "2474"]
[Result "0-1"]
[Round "04"]
[TimeControl "180+2"]
[Date "2023.01.10"]
[WhiteClock "0:00:02"]
[BlackClock "0:00:09"]

1. d4 {[%clk 0:00:00]}  g6 {[%clk 0:00:00]} 2. c4 {[%clk 0:03:00]}  Bg7 {[%clk 0:02:56]} 3. Nc3 {[%clk 0:03:00]}  d6 {[%clk 0:02:56]} 4. Nf3 {[%clk 0:03:01]}  Nc6 {[%clk 0:02:57]} 5. Bf4 {[%clk 0:03:00]}  Bg4 {[%clk 0:02:58]} 6. e3 {[%clk 0:03:00]}  e5 {[%clk 0:02:58]} 7. dxe5 {[%clk 0:02:57]}  Nxe5 {[%clk 0:02:58]} 8. Be2 {[%clk 0:02:56]}  Bxf3 {[%clk 0:02:52]} 9. Bxf3 {[%clk 0:02:53]}  c6 {[%clk 0:02:49]} 10. Be2 {[%clk 0:02:52]}  Nf6 {[%clk 0:02:47]} 11. h3 {[%clk 0:02:44]}  O-O {[%clk 0:02:46]} 12. O-O {[%clk 0:02:44]}  Qe7 {[%clk 0:02:46]} 13. Qc2 {[%clk 0:02:44]}  Nfd7 {[%clk 0:02:47]} 14. Rfd1 {[%clk 0:02:43]}  Nc5 {[%clk 0:02:35]} 15. b4 {[%clk 0:02:41]}  Ne6 {[%clk 0:02:35]} 16. Bg3 {[%clk 0:02:39]}  f5 {[%clk 0:02:32]} 17. Rab1 {[%clk 0:02:33]}  f4 {[%clk 0:02:32]} 18. exf4 {[%clk 0:02:28]}  Nxf4 {[%clk 0:02:28]} 19. Bf1 {[%clk 0:02:27]}  Kh8 {[%clk 0:02:29]} 20. Ne4 {[%clk 0:02:22]}  Rad8 {[%clk 0:02:13]} 21. c5 {[%clk 0:02:14]}  d5 {[%clk 0:02:11]} 22. Nd6 {[%clk 0:02:06]}  Qg5 {[%clk 0:02:01]} 23. Nxb7 {[%clk 0:02:04]}  Rd7 {[%clk 0:01:40]} 24. Nd6 {[%clk 0:01:56]}  Nh5 {[%clk 0:01:39]} 25. Bxe5 {[%clk 0:01:54]}  Bxe5 {[%clk 0:01:38]} 26. Re1 {[%clk 0:01:47]}  Qf4 {[%clk 0:01:34]} 27. g3 {[%clk 0:01:39]}  Qg5 {[%clk 0:01:22]} 28. Rb3 {[%clk 0:01:28]}  Bd4 {[%clk 0:01:11]} 29. Re8 {[%clk 0:01:15]}  Rxe8 {[%clk 0:01:08]} 30. Nxe8 {[%clk 0:00:26]}  Rf7 {[%clk 0:01:03]} 31. Nd6 {[%clk 0:00:27]}  Rxf2 {[%clk 0:01:04]} 32. Qxf2 {[%clk 0:00:24]}  Bxf2+ {[%clk 0:00:50]} 33. Kxf2 {[%clk 0:00:23]}  Qd2+ {[%clk 0:00:50]} 34. Be2 {[%clk 0:00:24]}  Nf6 {[%clk 0:00:49]} 35. a3 {[%clk 0:00:23]}  a5 {[%clk 0:00:50]} 36. Re3 {[%clk 0:00:18]}  axb4 {[%clk 0:00:48]} 37. axb4 {[%clk 0:00:18]}  Qxb4 {[%clk 0:00:47]} 38. Nf7+ {[%clk 0:00:18]}  Kg7 {[%clk 0:00:48]} 39. Ng5 {[%clk 0:00:18]}  Ne4+ {[%clk 0:00:48]} 40. Nxe4 {[%clk 0:00:17]}  dxe4 {[%clk 0:00:47]} 41. g4 {[%clk 0:00:17]}  Qxc5 {[%clk 0:00:48]} 42. Bf1 {[%clk 0:00:11]}  g5 {[%clk 0:00:48]} 43. Bg2 {[%clk 0:00:11]}  Kf6 {[%clk 0:00:48]} 44. Bxe4 {[%clk 0:00:12]}  Ke5 {[%clk 0:00:43]} 45. Kf3 {[%clk 0:00:12]}  Kf6 {[%clk 0:00:43]} 46. Bxh7 {[%clk 0:00:12]}  Qd5+ {[%clk 0:00:33]} 47. Be4 {[%clk 0:00:10]}  Qd1+ {[%clk 0:00:33]} 48. Kf2 {[%clk 0:00:10]}  c5 {[%clk 0:00:34]} 49. Bf5 {[%clk 0:00:09]}  c4 {[%clk 0:00:35]} 50. Re6+ {[%clk 0:00:08]}  Kf7 {[%clk 0:00:34]} 51. Rc6 {[%clk 0:00:09]}  Qd2+ {[%clk 0:00:34]} 52. Kf3 {[%clk 0:00:08]}  c3 {[%clk 0:00:35]} 53. Rc7+ {[%clk 0:00:08]}  Kf6 {[%clk 0:00:31]} 54. Rc6+ {[%clk 0:00:07]}  Ke5 {[%clk 0:00:31]} 55. Rc8 {[%clk 0:00:07]}  Qf4+ {[%clk 0:00:32]} 56. Kg2 {[%clk 0:00:04]}  Kd4 {[%clk 0:00:27]} 57. Rd8+ {[%clk 0:00:05]}  Ke3 {[%clk 0:00:25]} 58. Re8+ {[%clk 0:00:04]}  Kd2 {[%clk 0:00:25]} 59. Rd8+ {[%clk 0:00:05]}  Kc1 {[%clk 0:00:25]} 60. Rc8 {[%clk 0:00:05]}  Qd2+ {[%clk 0:00:26]} 61. Kg3 {[%clk 0:00:06]}  Qd6+ {[%clk 0:00:25]} 62. Kg2 {[%clk 0:00:06]}  Qb4 {[%clk 0:00:25]} 63. Kg3 {[%clk 0:00:06]}  Kd2 {[%clk 0:00:17]} 64. Rd8+ {[%clk 0:00:06]}  Ke1 {[%clk 0:00:16]} 65. Re8+ {[%clk 0:00:06]}  Kd1 {[%clk 0:00:16]} 66. Rd8+ {[%clk 0:00:06]}  Kc1 {[%clk 0:00:11]} 67. Rc8 {[%clk 0:00:06]}  Qd4 {[%clk 0:00:11]} 68. Kg2 {[%clk 0:00:06]}  Kd2 {[%clk 0:00:11]} 69. Kg3 {[%clk 0:00:05]}  Ke1 {[%clk 0:00:11]} 70. Kg2 {[%clk 0:00:04]}  Qf2+ {[%clk 0:00:09]} 71. Kh1 {[%clk 0:00:03]}  Qf3+ {[%clk 0:00:08]} 72. Kh2 {[%clk 0:00:03]}  Kf2 {[%clk 0:00:09]} 73. Be4 {[%clk 0:00:03]}  Qg3+ {[%clk 0:00:09]} 74. Kh1 {[%clk 0:00:02]}  Qg1# {[%clk 0:00:09]} 0-1


[Site "https://www.chess.com"]

[Event "Titled Tuesday Blitz January 10 Late 2023"]
[White "Djordjevic, Vuk"]
[Black "Martinez, Marcel"]
[WhiteFideId "902098"]
[BlackFideId "2016249"]
[WhiteElo "2375"]
[BlackElo "2402"]
[Result "1-0"]
[Round "04"]
[TimeControl "180+2"]
[Date "2023.01.10"]
[WhiteClock "0:00:07"]
[BlackClock "0:00:09"]

1. d4 {[%clk 0:00:00]}  Nf6 {[%clk 0:00:00]} 2. Bg5 {[%clk 0:03:00]}  d5 {[%clk 0:02:58]} 3. Bxf6 {[%clk 0:03:01]}  exf6 {[%clk 0:02:55]} 4. e3 {[%clk 0:03:01]}  Bd6 {[%clk 0:02:55]} 5. c4 {[%clk 0:03:02]}  dxc4 {[%clk 0:02:54]} 6. Bxc4 {[%clk 0:03:00]}  O-O {[%clk 0:02:54]} 7. Nc3 {[%clk 0:03:01]}  f5 {[%clk 0:02:53]} 8. Nf3 {[%clk 0:03:01]}  Nd7 {[%clk 0:02:53]} 9. O-O {[%clk 0:03:02]}  Nf6 {[%clk 0:02:52]} 10. Qc2 {[%clk 0:03:02]}  c6 {[%clk 0:02:51]} 11. Rfe1 {[%clk 0:03:03]}  Re8 {[%clk 0:02:49]} 12. Rad1 {[%clk 0:02:54]}  Ne4 {[%clk 0:02:46]} 13. Ne5 {[%clk 0:02:46]}  Bxe5 {[%clk 0:02:35]} 14. dxe5 {[%clk 0:02:38]}  Qh4 {[%clk 0:02:13]} 15. g3 {[%clk 0:02:33]}  Qh5 {[%clk 0:02:07]} 16. Nxe4 {[%clk 0:01:38]}  fxe4 {[%clk 0:01:43]} 17. Qxe4 {[%clk 0:01:25]}  Bg4 {[%clk 0:01:40]} 18. Rd4 {[%clk 0:01:25]}  Be6 {[%clk 0:01:37]} 19. Bxe6 {[%clk 0:01:25]}  Rxe6 {[%clk 0:01:00]} 20. f4 {[%clk 0:01:22]}  Rh6 {[%clk 0:01:01]} 21. Rd2 {[%clk 0:01:15]}  Re8 {[%clk 0:00:42]} 22. Qc4 {[%clk 0:01:10]}  Qf3 {[%clk 0:00:27]} 23. Qe2 {[%clk 0:01:06]}  Qe4 {[%clk 0:00:24]} 24. Qg2 {[%clk 0:01:01]}  Qc4 {[%clk 0:00:22]} 25. b3 {[%clk 0:01:00]}  Qb4 {[%clk 0:00:21]} 26. Red1 {[%clk 0:00:59]}  f6 {[%clk 0:00:21]} 27. Rd8 {[%clk 0:00:59]}  Qe7 {[%clk 0:00:20]} 28. Rxe8+ {[%clk 0:00:46]}  Qxe8 {[%clk 0:00:20]} 29. Qe4 {[%clk 0:00:29]}  fxe5 {[%clk 0:00:20]} 30. f5 {[%clk 0:00:29]}  Rf6 {[%clk 0:00:19]} 31. g4 {[%clk 0:00:23]}  Rf7 {[%clk 0:00:17]} 32. Qc4 {[%clk 0:00:23]}  Kh8 {[%clk 0:00:17]} 33. Qxf7 {[%clk 0:00:22]}  Qf8 {[%clk 0:00:17]} 34. Rd2 {[%clk 0:00:13]}  Qxf7 {[%clk 0:00:16]} 35. Rd8+ {[%clk 0:00:12]}  Qg8 {[%clk 0:00:16]} 36. Rxg8+ {[%clk 0:00:12]}  Kxg8 {[%clk 0:00:17]} 37. h4 {[%clk 0:00:12]}  Kf7 {[%clk 0:00:17]} 38. g5 {[%clk 0:00:12]}  c5 {[%clk 0:00:16]} 39. Kf2 {[%clk 0:00:13]}  b5 {[%clk 0:00:09]} 40. Kf3 {[%clk 0:00:12]}  Ke7 {[%clk 0:00:09]} 41. Ke4 {[%clk 0:00:11]}  Kd6 {[%clk 0:00:09]} 42. h5 {[%clk 0:00:10]}  h6 {[%clk 0:00:09]} 43. f6 {[%clk 0:00:07]} 1-0


[Site "https://www.chess.com"]

[Event "Titled Tuesday Blitz January 10 Late 2023"]
[White "Karas, Marek"]
[Black "Injac, Teodora"]
[WhiteFideId "14928558"]
[BlackFideId "932400"]
[WhiteElo "2227"]
[BlackElo "2391"]
[Result "1/2-1/2"]
[Round "04"]
[TimeControl "180+2"]
[Date "2023.01.10"]
[WhiteClock "0:00:08"]
[BlackClock "0:00:03"]

1. h4 {[%clk 0:00:00]}  d5 {[%clk 0:00:00]} 2. d4 {[%clk 0:03:00]}  Nf6 {[%clk 0:02:59]} 3. Bf4 {[%clk 0:03:00]}  c5 {[%clk 0:02:57]} 4. dxc5 {[%clk 0:02:59]}  Nc6 {[%clk 0:02:54]} 5. Nf3 {[%clk 0:02:55]}  g6 {[%clk 0:02:49]} 6. e3 {[%clk 0:02:52]}  Bg7 {[%clk 0:02:38]} 7. c3 {[%clk 0:02:48]}  a5 {[%clk 0:02:37]} 8. Be2 {[%clk 0:02:47]}  O-O {[%clk 0:02:24]} 9. Ne5 {[%clk 0:02:32]}  Ne4 {[%clk 0:02:23]} 10. Nxc6 {[%clk 0:02:30]}  bxc6 {[%clk 0:02:12]} 11. h5 {[%clk 0:02:26]}  e5 {[%clk 0:02:13]} 12. Bh2 {[%clk 0:02:20]}  Rb8 {[%clk 0:02:11]} 13. hxg6 {[%clk 0:02:13]}  fxg6 {[%clk 0:01:34]} 14. Bf3 {[%clk 0:02:00]}  Nxc5 {[%clk 0:01:28]} 15. b3 {[%clk 0:01:46]}  Bf5 {[%clk 0:01:18]} 16. O-O {[%clk 0:01:39]}  Rb7 {[%clk 0:01:16]} 17. Bg4 {[%clk 0:01:36]}  Rbf7 {[%clk 0:01:02]} 18. Nd2 {[%clk 0:01:29]}  Bd3 {[%clk 0:00:56]} 19. Be2 {[%clk 0:01:24]}  e4 {[%clk 0:00:53]} 20. Rc1 {[%clk 0:01:23]}  Bxe2 {[%clk 0:00:48]} 21. Qxe2 {[%clk 0:01:16]}  Nd3 {[%clk 0:00:47]} 22. Bg3 {[%clk 0:01:17]}  h5 {[%clk 0:00:48]} 23. f3 {[%clk 0:01:08]}  h4 {[%clk 0:00:45]} 24. Bh2 {[%clk 0:00:50]}  Nxc1 {[%clk 0:00:41]} 25. Rxc1 {[%clk 0:00:45]}  exf3 {[%clk 0:00:41]} 26. Nxf3 {[%clk 0:00:46]}  h3 {[%clk 0:00:34]} 27. Rf1 {[%clk 0:00:47]}  hxg2 {[%clk 0:00:31]} 28. Qxg2 {[%clk 0:00:41]}  Qe7 {[%clk 0:00:21]} 29. Bf4 {[%clk 0:00:40]}  Qe4 {[%clk 0:00:22]} 30. Ng5 {[%clk 0:00:38]}  Qxg2+ {[%clk 0:00:21]} 31. Kxg2 {[%clk 0:00:35]}  Re7 {[%clk 0:00:19]} 32. Rc1 {[%clk 0:00:36]}  Be5 {[%clk 0:00:16]} 33. Kf3 {[%clk 0:00:32]}  Bxf4 {[%clk 0:00:15]} 34. exf4 {[%clk 0:00:20]}  Rfe8 {[%clk 0:00:14]} 35. Rc2 {[%clk 0:00:21]}  Re3+ {[%clk 0:00:13]} 36. Kf2 {[%clk 0:00:22]}  Rd3 {[%clk 0:00:12]} 37. c4 {[%clk 0:00:22]}  d4 {[%clk 0:00:11]} 38. Nf3 {[%clk 0:00:18]}  Ree3 {[%clk 0:00:10]} 39. Nxd4 {[%clk 0:00:17]}  Rh3 {[%clk 0:00:05]} 40. Kg2 {[%clk 0:00:15]}  Rdg3+ {[%clk 0:00:03]} 41. Kf2 {[%clk 0:00:15]}  Rg4 {[%clk 0:00:03]} 42. Ne2 {[%clk 0:00:15]}  Rh2+ {[%clk 0:00:03]} 43. Ke3 {[%clk 0:00:12]}  Rgg2 {[%clk 0:00:03]} 44. Rd2 {[%clk 0:00:13]}  Kf7 {[%clk 0:00:03]} 45. a3 {[%clk 0:00:13]}  c5 {[%clk 0:00:02]} 46. Rd7+ {[%clk 0:00:09]}  Ke8 {[%clk 0:00:03]} 47. Rd2 {[%clk 0:00:06]}  Ke7 {[%clk 0:00:03]} 48. Rc2 {[%clk 0:00:07]}  Rf2 {[%clk 0:00:03]} 49. Rd2 {[%clk 0:00:07]}  Rfg2 {[%clk 0:00:03]} 50. Rc2 {[%clk 0:00:07]}  Rf2 {[%clk 0:00:03]} 51. Rd2 {[%clk 0:00:08]}  Rfg2 {[%clk 0:00:03]} 1/2-1/2


[Site "https://www.chess.com"]

[Event "Titled Tuesday Blitz January 10 Late 2023"]
[White "Yurovskykh, Oleksandr"]
[Black "Ruiz Castillo, Joshua Daniel"]
[WhiteFideId "14134020"]
[BlackFideId "4400704"]
[WhiteElo "2328"]
[BlackElo "2459"]
[Result "1-0"]
[Round "04"]
[TimeControl "180+2"]
[Date "2023.01.10"]
[WhiteClock "0:00:15"]
[BlackClock "0:00:11"]

1. d4 {[%clk 0:00:00]}  d5 {[%clk 0:00:00]} 2. Bf4 {[%clk 0:02:57]}  Nf6 {[%clk 0:02:52]} 3. e3 {[%clk 0:02:56]}  c5 {[%clk 0:02:45]} 4. c3 {[%clk 0:02:56]}  Qb6 {[%clk 0:02:45]} 5. Qb3 {[%clk 0:02:56]}  c4 {[%clk 0:02:41]} 6. Qxb6 {[%clk 0:02:53]}  axb6 {[%clk 0:02:40]} 7. Nd2 {[%clk 0:02:52]}  Nc6 {[%clk 0:02:40]} 8. a3 {[%clk 0:02:52]}  b5 {[%clk 0:02:40]} 9. Rc1 {[%clk 0:02:39]}  h6 {[%clk 0:02:33]} 10. h3 {[%clk 0:02:37]}  g5 {[%clk 0:02:30]} 11. Bh2 {[%clk 0:02:28]}  Bf5 {[%clk 0:02:23]} 12. Be2 {[%clk 0:02:28]}  e6 {[%clk 0:02:23]} 13. Ngf3 {[%clk 0:02:24]}  Kd7 {[%clk 0:02:20]} 14. O-O {[%clk 0:02:18]}  Bd6 {[%clk 0:02:01]} 15. Ne5+ {[%clk 0:02:15]}  Ke7 {[%clk 0:01:59]} 16. Rfe1 {[%clk 0:01:59]}  Nd7 {[%clk 0:01:59]} 17. Nxd7 {[%clk 0:01:57]}  Kxd7 {[%clk 0:01:57]} 18. Bxd6 {[%clk 0:01:55]}  Kxd6 {[%clk 0:01:56]} 19. Bf3 {[%clk 0:01:50]}  Bd3 {[%clk 0:01:54]} 20. e4 {[%clk 0:01:50]}  f5 {[%clk 0:01:52]} 21. exd5 {[%clk 0:01:49]}  exd5 {[%clk 0:01:41]} 22. Be2 {[%clk 0:01:12]}  Rhe8 {[%clk 0:01:42]} 23. Bf1 {[%clk 0:01:09]}  Bxf1 {[%clk 0:01:05]} 24. Nxf1 {[%clk 0:01:08]}  Re4 {[%clk 0:01:04]} 25. Ne3 {[%clk 0:01:07]}  Rf8 {[%clk 0:00:56]} 26. f3 {[%clk 0:01:00]}  Re6 {[%clk 0:00:53]} 27. Nc2 {[%clk 0:00:55]}  Rfe8 {[%clk 0:00:52]} 28. Kf2 {[%clk 0:00:54]}  f4 {[%clk 0:00:51]} 29. Rxe6+ {[%clk 0:00:55]}  Rxe6 {[%clk 0:00:50]} 30. Re1 {[%clk 0:00:50]}  Rxe1 {[%clk 0:00:49]} 31. Kxe1 {[%clk 0:00:51]}  Ne7 {[%clk 0:00:49]} 32. Kf2 {[%clk 0:00:52]}  Ke6 {[%clk 0:00:49]} 33. Ke1 {[%clk 0:00:45]}  Nc8 {[%clk 0:00:44]} 34. Nb4 {[%clk 0:00:43]}  Nb6 {[%clk 0:00:40]} 35. Kd1 {[%clk 0:00:35]}  h5 {[%clk 0:00:40]} 36. Na2 {[%clk 0:00:35]}  Kf5 {[%clk 0:00:40]} 37. Nc1 {[%clk 0:00:34]}  g4 {[%clk 0:00:36]} 38. hxg4+ {[%clk 0:00:33]}  hxg4 {[%clk 0:00:35]} 39. fxg4+ {[%clk 0:00:20]}  Kxg4 {[%clk 0:00:36]} 40. Ne2 {[%clk 0:00:21]}  Nc8 {[%clk 0:00:36]} 41. Ke1 {[%clk 0:00:21]}  Kf5 {[%clk 0:00:30]} 42. Ng1 {[%clk 0:00:20]}  Ke4 {[%clk 0:00:28]} 43. Ke2 {[%clk 0:00:20]}  Nb6 {[%clk 0:00:26]} 44. Kd2 {[%clk 0:00:20]}  Na4 {[%clk 0:00:26]} 45. Kc2 {[%clk 0:00:18]}  Ke3 {[%clk 0:00:26]} 46. Nh3 {[%clk 0:00:19]}  Nb6 {[%clk 0:00:27]} 47. Ng5 {[%clk 0:00:19]}  Nc8 {[%clk 0:00:26]} 48. Ne6 {[%clk 0:00:19]}  Ne7 {[%clk 0:00:17]} 49. Kd1 {[%clk 0:00:18]}  Ng6 {[%clk 0:00:16]} 50. Ke1 {[%clk 0:00:17]}  Kd3 {[%clk 0:00:13]} 51. Kd1 {[%clk 0:00:17]}  Ke3 {[%clk 0:00:13]} 52. Ke1 {[%clk 0:00:15]}  Nh4 {[%clk 0:00:13]} 53. Kf1 {[%clk 0:00:16]}  Nf5 {[%clk 0:00:13]} 54. Nc7 {[%clk 0:00:15]}  Ng3+ {[%clk 0:00:13]} 55. Ke1 {[%clk 0:00:15]}  Ke4 {[%clk 0:00:14]} 56. Nxb5 {[%clk 0:00:15]}  Nf5 {[%clk 0:00:11]} 57. Ke2 {[%clk 0:00:16]}  Ne3 {[%clk 0:00:11]} 58. Nd6# {[%clk 0:00:15]} 1-0


[Site "https://www.chess.com"]

[Event "Titled Tuesday Blitz January 10 Late 2023"]
[White "Stoleriu, George"]
[Black "Fiorito, Francisco"]
[WhiteFideId "1227505"]
[BlackFideId "180165"]
[WhiteElo "2390"]
[BlackElo "2305"]
[Result "0-1"]
[Round "04"]
[TimeControl "180+2"]
[Date "2023.01.10"]
[WhiteClock "0:02:33"]
[BlackClock "0:00:48"]

1. e4 {[%clk 0:00:00]}  c5 {[%clk 0:00:00]} 2. Nc3 {[%clk 0:03:00]}  Nc6 {[%clk 0:02:59]} 3. Bb5 {[%clk 0:02:59]}  Nd4 {[%clk 0:02:58]} 4. Bc4 {[%clk 0:02:59]}  g6 {[%clk 0:02:58]} 5. Nf3 {[%clk 0:03:00]}  Bg7 {[%clk 0:02:58]} 6. Nxd4 {[%clk 0:03:00]}  cxd4 {[%clk 0:02:59]} 7. Qf3 {[%clk 0:03:00]}  Nf6 {[%clk 0:02:59]} 8. e5 {[%clk 0:03:01]}  dxc3 {[%clk 0:02:23]} 9. dxc3 {[%clk 0:02:59]}  O-O {[%clk 0:02:23]} 10. exf6 {[%clk 0:02:58]}  Bxf6 {[%clk 0:02:14]} 11. O-O {[%clk 0:02:56]}  Qc7 {[%clk 0:02:14]} 12. Bb3 {[%clk 0:02:56]}  Bg7 {[%clk 0:02:11]} 13. Bf4 {[%clk 0:02:55]}  d6 {[%clk 0:02:11]} 14. Rfe1 {[%clk 0:02:53]}  a5 {[%clk 0:02:10]} 15. a4 {[%clk 0:02:54]}  Rb8 {[%clk 0:02:07]} 16. Rad1 {[%clk 0:02:53]}  b6 {[%clk 0:02:04]} 17. Bd5 {[%clk 0:02:52]}  e6 {[%clk 0:01:31]} 18. Bc6 {[%clk 0:02:49]}  e5 {[%clk 0:01:14]} 19. Be3 {[%clk 0:02:49]}  Be6 {[%clk 0:01:12]} 20. Bd5 {[%clk 0:02:47]}  b5 {[%clk 0:01:03]} 21. axb5 {[%clk 0:02:43]}  Rxb5 {[%clk 0:00:56]} 22. b3 {[%clk 0:02:41]}  Qxc3 {[%clk 0:00:57]} 23. Bxe6 {[%clk 0:02:41]}  fxe6 {[%clk 0:00:51]} 24. Qe2 {[%clk 0:02:34]}  Rd5 {[%clk 0:00:51]} 25. Rxd5 {[%clk 0:02:35]}  exd5 {[%clk 0:00:48]} 26. Qb5 {[%clk 0:02:33]}  Qxe1+ {[%clk 0:00:48]} 0-1


[Site "https://www.chess.com"]

[Event "Titled Tuesday Blitz January 10 Late 2023"]
[White "Krishnan, Varun"]
[Black "Bazeev, German"]
[WhiteFideId "5054508"]
[BlackFideId "24119350"]
[WhiteElo "2341"]
[BlackElo "2369"]
[Result "0-1"]
[Round "04"]
[TimeControl "180+2"]
[Date "2023.01.10"]
[WhiteClock "0:00:09"]
[BlackClock "0:00:08"]

1. d4 {[%clk 0:00:00]}  Nf6 {[%clk 0:00:00]} 2. c4 {[%clk 0:03:00]}  e6 {[%clk 0:02:44]} 3. g3 {[%clk 0:03:00]}  d5 {[%clk 0:02:43]} 4. Bg2 {[%clk 0:03:01]}  Bb4+ {[%clk 0:02:42]} 5. Bd2 {[%clk 0:03:00]}  Be7 {[%clk 0:02:41]} 6. Nf3 {[%clk 0:02:53]}  O-O {[%clk 0:02:39]} 7. O-O {[%clk 0:02:53]}  c6 {[%clk 0:02:40]} 8. Qc2 {[%clk 0:02:52]}  Nbd7 {[%clk 0:02:40]} 9. b3 {[%clk 0:02:52]}  a5 {[%clk 0:02:41]} 10. Nc3 {[%clk 0:02:50]}  h6 {[%clk 0:02:41]} 11. e4 {[%clk 0:02:50]}  b6 {[%clk 0:02:42]} 12. Ne5 {[%clk 0:02:49]}  Bb7 {[%clk 0:02:27]} 13. Nxd7 {[%clk 0:02:42]}  Qxd7 {[%clk 0:02:24]} 14. e5 {[%clk 0:02:39]}  Ne8 {[%clk 0:02:23]} 15. Be3 {[%clk 0:02:34]}  Ba6 {[%clk 0:02:23]} 16. Ne2 {[%clk 0:02:31]}  Rc8 {[%clk 0:02:22]} 17. c5 {[%clk 0:02:13]}  bxc5 {[%clk 0:02:14]} 18. dxc5 {[%clk 0:02:06]}  Nc7 {[%clk 0:02:06]} 19. f4 {[%clk 0:02:06]}  f5 {[%clk 0:01:41]} 20. Rfe1 {[%clk 0:02:00]}  Bxe2 {[%clk 0:01:30]} 21. Qxe2 {[%clk 0:01:40]}  Rb8 {[%clk 0:01:29]} 22. Qd2 {[%clk 0:01:38]}  Rb4 {[%clk 0:01:23]} 23. Red1 {[%clk 0:01:36]}  Rfb8 {[%clk 0:01:20]} 24. Kh1 {[%clk 0:01:23]}  Qc8 {[%clk 0:01:19]} 25. Bd4 {[%clk 0:01:19]}  Nb5 {[%clk 0:01:14]} 26. Bf2 {[%clk 0:01:07]}  Nc7 {[%clk 0:01:09]} 27. Bf1 {[%clk 0:00:56]}  Qf8 {[%clk 0:01:05]} 28. Qc2 {[%clk 0:00:41]}  g5 {[%clk 0:00:56]} 29. Be1 {[%clk 0:00:35]}  Re4 {[%clk 0:00:48]} 30. Bg2 {[%clk 0:00:33]}  gxf4 {[%clk 0:00:27]} 31. Bxe4 {[%clk 0:00:29]}  fxe4 {[%clk 0:00:25]} 32. gxf4 {[%clk 0:00:29]}  Qxf4 {[%clk 0:00:23]} 33. Bg3 {[%clk 0:00:26]}  Qf3+ {[%clk 0:00:09]} 34. Qg2 {[%clk 0:00:21]}  Qxg2+ {[%clk 0:00:10]} 35. Kxg2 {[%clk 0:00:20]}  Nb5 {[%clk 0:00:09]} 36. Rac1 {[%clk 0:00:21]}  Rf8 {[%clk 0:00:06]} 37. Be1 {[%clk 0:00:19]}  Rf3 {[%clk 0:00:03]} 38. Bxa5 {[%clk 0:00:19]}  Bg5 {[%clk 0:00:03]} 39. Bd2 {[%clk 0:00:18]}  Kf7 {[%clk 0:00:03]} 40. a4 {[%clk 0:00:17]}  Nc7 {[%clk 0:00:02]} 41. Bxg5 {[%clk 0:00:16]}  hxg5 {[%clk 0:00:02]} 42. Rf1 {[%clk 0:00:16]}  g4 {[%clk 0:00:03]} 43. Rxf3+ {[%clk 0:00:16]}  gxf3+ {[%clk 0:00:03]} 44. Kf2 {[%clk 0:00:16]}  Na6 {[%clk 0:00:04]} 45. Rb1 {[%clk 0:00:17]}  Nb4 {[%clk 0:00:05]} 46. a5 {[%clk 0:00:16]}  d4 {[%clk 0:00:05]} 47. Ra1 {[%clk 0:00:17]}  Nd3+ {[%clk 0:00:06]} 48. Kg3 {[%clk 0:00:17]}  f2 {[%clk 0:00:06]} 49. a6 {[%clk 0:00:16]}  e3 {[%clk 0:00:06]} 50. a7 {[%clk 0:00:14]}  e2 {[%clk 0:00:04]} 51. a8=Q {[%clk 0:00:12]}  e1=Q {[%clk 0:00:04]} 52. Ra7+ {[%clk 0:00:12]}  Kg6 {[%clk 0:00:03]} 53. Qg8+ {[%clk 0:00:12]}  Kf5 {[%clk 0:00:03]} 54. Rf7+ {[%clk 0:00:12]}  Ke4 {[%clk 0:00:04]} 55. Qg4+ {[%clk 0:00:11]}  Ke3 {[%clk 0:00:05]} 56. Rf3+ {[%clk 0:00:10]}  Kd2 {[%clk 0:00:04]} 57. Qg5+ {[%clk 0:00:10]}  Kc2 {[%clk 0:00:05]} 58. Kh3 {[%clk 0:00:10]}  f1=Q+ {[%clk 0:00:03]} 59. Rxf1 {[%clk 0:00:10]}  Qxf1+ {[%clk 0:00:03]} 60. Kh4 {[%clk 0:00:10]}  Qe1+ {[%clk 0:00:03]} 61. Kh5 {[%clk 0:00:10]}  Qxe5 {[%clk 0:00:04]} 62. Qxe5 {[%clk 0:00:09]}  Nxe5 {[%clk 0:00:04]} 63. Kg5 {[%clk 0:00:07]}  d3 {[%clk 0:00:05]} 64. Kf4 {[%clk 0:00:07]}  d2 {[%clk 0:00:05]} 65. Kxe5 {[%clk 0:00:08]}  d1=Q {[%clk 0:00:06]} 66. Kxe6 {[%clk 0:00:08]}  Qd5+ {[%clk 0:00:07]} 67. Ke7 {[%clk 0:00:09]}  Kxb3 {[%clk 0:00:07]} 68. h4 {[%clk 0:00:10]}  Ka4 {[%clk 0:00:07]} 69. Kf6 {[%clk 0:00:09]}  Qh5 {[%clk 0:00:07]} 70. Ke6 {[%clk 0:00:09]}  Kb5 {[%clk 0:00:08]} 71. Kd6 {[%clk 0:00:09]}  Qxh4 {[%clk 0:00:08]} 72. Ke6 {[%clk 0:00:09]}  Qc4+ {[%clk 0:00:08]} 0-1


[Site "https://www.chess.com"]

[Event "Titled Tuesday Blitz January 10 Late 2023"]
[White "Tristan, Leonardo"]
[Black "Ruperez Benito, Antonio"]
[WhiteFideId "113816"]
[BlackFideId "22245049"]
[WhiteElo "2545"]
[BlackElo "2307"]
[Result "1-0"]
[Round "04"]
[TimeControl "180+2"]
[Date "2023.01.10"]
[WhiteClock "0:02:27"]
[BlackClock "0:02:47"]

1. d4 {[%clk 0:00:00]}  e6 {[%clk 0:00:00]} 2. Nf3 {[%clk 0:03:00]}  Nf6 {[%clk 0:02:59]} 3. Bf4 {[%clk 0:03:01]}  d5 {[%clk 0:02:59]} 4. e3 {[%clk 0:03:01]}  Bd6 {[%clk 0:02:59]} 5. Nbd2 {[%clk 0:03:01]}  O-O {[%clk 0:03:00]} 6. Bd3 {[%clk 0:02:56]}  c5 {[%clk 0:02:59]} 7. dxc5 {[%clk 0:02:56]}  Bxc5 {[%clk 0:03:00]} 8. O-O {[%clk 0:02:55]}  Bd6 {[%clk 0:03:00]} 9. Bg5 {[%clk 0:02:55]}  Nbd7 {[%clk 0:02:58]} 10. c4 {[%clk 0:02:48]}  Be7 {[%clk 0:02:57]} 11. Qc2 {[%clk 0:02:38]}  h6 {[%clk 0:02:53]} 12. Bh4 {[%clk 0:02:33]}  dxc4 {[%clk 0:02:52]} 13. Nxc4 {[%clk 0:02:31]}  a6 {[%clk 0:02:48]} 14. Rfd1 {[%clk 0:02:30]}  b5 {[%clk 0:02:47]} 15. Nce5 {[%clk 0:02:27]}  Bb7 {[%clk 0:02:47]} 16. Bxf6 {[%clk 0:02:27]} 1-0


[Site "https://www.chess.com"]